lending/lending_fUSD_20250224
["ID","MTS","AMOUNT","RATE_DAILY","PERIOD"]
[354256213,1740369041494,-500.0,0.00016438,2]
[354256215,1740369041503,-502.55191422,0.00016438,2]
[354256216,1740369041512,-2481.12,0.00016438,2]
[354256218,1740369041522,-500.0,0.00016438,2]
[354256220,1740369041531,-506.60370211,0.00016438,2]
[354256221,1740369041540,-1354.92,0.00016438,2]
[354256223,1740369041549,-500.0,0.00016438,2]
[354256225,1740369041559,-1042.46,0.00016438,2]
[354256227,1740369041568,-500.0,0.00016438,2]
[354256228,1740369041577,-516.88,0.00016438,2]
[354256230,1740369041587,-500.0,0.00016438,2]
[354256232,1740369041596,-500.0,0.00016438,2]
[354256233,1740369041605,-500.0,0.00016438,2]
[354256234,1740369041614,-500.0,0.00016438,2]
[354256235,1740369041623,-501.47619548,0.00016438,2]
[354256236,1740369041632,-500.0,0.00016438,2]
[354256237,1740369041642,-500.0,0.00016438,2]
[354256238,1740369041652,-2436.06,0.00016438,2]
[354256239,1740369041661,-1542.62,0.00016438,2]
[354256241,1740369041675,-500.0,0.00016438,2]
[354256243,1740369041683,-500.0,0.00016438,2]
[354256245,1740369041692,-500.0,0.00016438,2]
[354256246,1740369041701,-500.0,0.00016438,2]
[354256248,1740369041710,-500.0,0.00016438,2]
[354256250,1740369041719,-578.05,0.00016438,2]
[354256252,1740369041728,-500.0,0.00016438,2]
[354256253,1740369041737,-2249.95,0.00016438,2]
[354256255,1740369041747,-500.0,0.00016438,2]
[354256257,1740369041757,-500.0,0.00016438,2]
[354256259,1740369041766,-500.0,0.00016438,2]
[354256261,1740369041775,-500.0,0.00016438,2]
[354256263,1740369041783,-501.51333299,0.00016438,2]
[354256265,1740369041792,-1597.02,0.00016438,2]
[354256267,1740369041802,-504.34625767,0.00016438,2]
[354256268,1740369041811,-1296.5,0.00016438,2]
[354256270,1740369041820,-500.0,0.00016438,2]
[354256272,1740369041828,-505.29404806,0.00016438,2]
[354256274,1740369041838,-1204.2,0.00016438,2]
[354256276,1740369041847,-500.0,0.00016438,2]
[354256277,1740369041856,-2036.34,0.00016438,2]
[354256279,1740369041864,-500.0,0.00016438,2]
[354256281,1740369041874,-500.0,0.00016438,2]
[354256283,1740369041883,-2014.86,0.00016438,2]
[354256284,1740369041892,-12048.63,0.00016438,2]
[354256286,1740369041901,-500.0,0.00016438,2]
[354256288,1740369041912,-1080.66,0.00016438,2]
[354256290,1740369041922,-500.0,0.00016438,2]
[354256292,1740369041932,-1654.39,0.00016438,2]
[354256294,1740369041941,-500.0,0.00016438,2]
[354256296,1740369041950,-500.0,0.00016438,2]
[354256298,1740369041960,-1231.62,0.00016438,2]
[354256300,1740369041969,-302.96530486,0.00016438,2]
[354256301,1740369041978,-843.3,0.00016438,2]
[354256303,1740369041987,-565.74,0.00016438,2]
[354256305,1740369041996,-500.0,0.00016438,2]
[354256307,1740369042006,-3592.31,0.00016438,2]
[354256309,1740369042015,-501.92305019,0.00016438,2]
[354256311,1740369042025,-500.0,0.00016438,2]
[354256312,1740369042034,-625.96,0.00016438,2]
[354256314,1740369042043,-961.13,0.00016438,2]
[354256316,1740369042052,-500.0,0.00016438,2]
[354256318,1740369042062,-1422.17,0.00016438,2]
[354256320,1740369042070,-500.0,0.00016438,2]
[354256322,1740369042080,-500.0,0.00016438,2]
[354256323,1740369042090,-715.05,0.00016438,2]
[354256325,1740369042099,-1930.66,0.00016438,2]
[354256327,1740369042108,-739.35,0.00016438,2]
[354256329,1740369042117,-501.83686493,0.00016438,2]
[354256330,1740369042127,-2287.23,0.00016438,2]
[354256332,1740369042136,-2471.76,0.00016438,2]
[354256334,1740369042145,-506.24068116,0.00016438,2]
[354256336,1740369042155,-500.0,0.00016438,2]
[354256338,1740369042166,-500.0,0.00016438,2]
[354256339,1740369042180,-559.25,0.00016438,2]
[354256341,1740369042190,-2606.41,0.00016438,2]
[354256343,1740369042200,-500.0,0.00016438,2]
[354256345,1740369042210,-5482.31,0.00016438,2]
[354256347,1740369042220,-502.84619971,0.00016438,2]
[354256349,1740369042229,-674.42,0.00016438,2]
[354256351,1740369042238,-849.53,0.00016438,2]
[354256353,1740369042247,-3009.2,0.00016438,2]
[354256355,1740369042257,-500.0,0.00016438,2]
[354256356,1740369042266,-3901.36,0.00016438,2]
[354256358,1740369042275,-500.97,0.00016438,2]
[354256360,1740369042284,-502.57911624,0.00016438,2]
[354256362,1740369042294,-500.0,0.00016438,2]
[354256364,1740369042304,-910.28,0.00016438,2]
[354256366,1740369042313,-500.0,0.00016438,2]
[354256368,1740369042323,-500.0,0.00016438,2]
[354256370,1740369042332,-816.72,0.00016438,2]
[354256372,1740369042342,-1644.82,0.00016438,2]
[354256373,1740369042352,-607.28,0.00016438,2]
[354256375,1740369042362,-500.0,0.00016438,2]
[354256377,1740369042371,-501.73587815,0.00016438,2]
[354256379,1740369042381,-1151.09,0.00016438,2]
[354256381,1740369042390,-1817.64,0.00016438,2]
[354256383,1740369042400,-2294.45,0.00016438,2]
[354256385,1740369042409,-501.74356961,0.00016438,2]
[354256387,1740369042422,-500.0,0.00016438,2]
[354256389,1740369042430,-504.60855438,0.00016438,2]
[354256390,1740369042439,-1969.18,0.00016438,2]
[354256392,1740369042449,-500.0,0.00016438,2]
[354256394,1740369042458,-2070.82,0.00016438,2]
[354256396,1740369042467,-897.24,0.00016438,2]
[354256398,1740369042476,-500.0,0.00016438,2]
[354256400,1740369042485,-500.0,0.00016438,2]
[354256402,1740369042494,-501.67877766,0.00016438,2]
[354256403,1740369042503,-500.0,0.00016438,2]
[354256405,1740369042512,-832.83,0.00016438,2]
[354256407,1740369042522,-500.0,0.00016438,2]
[354256409,1740369042531,-874.76,0.00016438,2]
[354256411,1740369042540,-500.0,0.00016438,2]
[354256413,1740369042549,-500.0,0.00016438,2]
[354256415,1740369042558,-1016.2,0.00016438,2]
[354256417,1740369042568,-525.19889091,0.00016438,2]
[354256419,1740369042577,-2395.5,0.00016438,2]
[354256421,1740369042586,-918.43,0.00016438,2]
[354256423,1740369042595,-500.0,0.00016438,2]
[354256425,1740369042604,-1420.36648244,0.00016438,2]
[354256470,1740369042916,-775.57351756,0.00016438,2]
[354256474,1740369042927,-500.0,0.00016438,2]
[354256478,1740369042937,-500.0,0.00016438,2]
[354256482,1740369042946,-500.99585207,0.00016438,2]
[354256488,1740369042956,-1331.3,0.00016438,2]
[354256495,1740369042965,-502.21034908,0.00016438,2]
[354256502,1740369042975,-500.0,0.00016438,2]
[354256507,1740369042983,-267.8580659,0.00016438,2]
[354256513,1740369042999,-232.1419341,0.00016438,2]
[354256517,1740369043008,-500.0,0.00016438,2]
[354256520,1740369043017,-2438.64,0.00016438,2]
[354256524,1740369043027,-533.99,0.00016438,2]
[354256528,1740369043036,-2294.79,0.00016438,2]
[354256531,1740369043045,-500.0,0.00016438,2]
[354256533,1740369043055,-1535.49,0.00016438,2]
[354256535,1740369043064,-2637.79,0.00016438,2]
[354256537,1740369043074,-501.7056485,0.00016438,2]
[354256539,1740369043084,-501.87799057,0.00016438,2]
[354256541,1740369043093,-500.0,0.00016438,2]
[354256544,1740369043103,-475.53016847,0.00016438,2]
[354256547,1740369043112,-735.23,0.00016438,2]
[354256550,1740369043121,-500.0,0.00016438,2]
[354256552,1740369043132,-2168.31,0.00016438,2]
[354256557,1740369043144,-2044.94,0.00016438,2]
[354256558,1740369043153,-501.93105681,0.00016438,2]
[354256563,1740369043165,-501.39379348,0.00016438,2]
[354256566,1740369043176,-500.0,0.00016438,2]
[354256569,1740369043185,-3055.43,0.00016438,2]
[354256571,1740369043194,-2123.24,0.00016438,2]
[354256575,1740369043204,-500.0,0.00016438,2]
[354256577,1740369043213,-3158.18,0.00016438,2]
[354256579,1740369043222,-366.97946007,0.00016438,2]
[354256584,1740369043234,-274.02890165,0.00016438,2]
[354256586,1740369043244,-424.77212932,0.00016438,2]
[354256661,1740369043610,-1272.36950896,0.00016438,2]
[354256664,1740369043619,-321.66915735,0.00016438,2]
[354256668,1740369043630,-410.63659719,0.00016438,2]
[354256672,1740369043642,-883.29424546,0.00016438,2]
[354256675,1740369043652,-1481.0,0.00016438,2]
[354256678,1740369043661,-500.0,0.00016438,2]
[354256681,1740369043675,-595.14,0.00016438,2]
[354256684,1740369043684,-500.0,0.00016438,2]
[354256687,1740369043694,-1302.83,0.00016438,2]
[354256690,1740369043705,-1980.34,0.00016438,2]
[354256693,1740369043714,-502.98501303,0.00016438,2]
[354256696,1740369043723,-500.0,0.00016438,2]
[354256699,1740369043732,-644.13,0.00016438,2]
[354256702,1740369043745,-3364.7,0.00016438,2]
[354256705,1740369043755,-1075.1,0.00016438,2]
[354256708,1740369043765,-500.0,0.00016438,2]
[354256711,1740369043775,-3010.04,0.00016438,2]
[354256714,1740369043785,-2117.53,0.00016438,2]
[354256717,1740369043794,-500.0,0.00016438,2]
[354256720,1740369043804,-2460.1,0.00016438,2]
[354256723,1740369043814,-501.74390209,0.00016438,2]
[354256726,1740369043823,-500.0,0.00016438,2]
[354256729,1740369043834,-1605.05,0.00016438,2]
[354256732,1740369043843,-500.0,0.00016438,2]
[354256735,1740369043853,-1559.36,0.00016438,2]
[354256738,1740369043863,-500.0,0.00016438,2]
[354256741,1740369043872,-500.0,0.00016438,2]
[354256744,1740369043882,-500.0,0.00016438,2]
[354256747,1740369043890,-1598.63,0.00016438,2]
[354256750,1740369043900,-500.0,0.00016438,2]
[354256753,1740369043909,-500.0,0.00016438,2]
[354256756,1740369043919,-3824.65,0.00016438,2]
[354256759,1740369043930,-500.0,0.00016438,2]
[354256762,1740369043940,-716.1,0.00016438,2]
[354256765,1740369043950,-3391.72,0.00016438,2]
[354256769,1740369043959,-501.81202986,0.00016438,2]
[354256772,1740369043969,-500.0,0.00016438,2]
[354256774,1740369043978,-502.67619594,0.00016438,2]
[354256777,1740369043988,-2969.04,0.00016438,2]
[354256780,1740369043997,-541.86,0.00016438,2]
[354256783,1740369044006,-503.07895424,0.00016438,2]
[354256786,1740369044016,-500.0,0.00016438,2]
[354256789,1740369044025,-6461.1,0.00016438,2]
[354256792,1740369044034,-500.0,0.00016438,2]
[354256795,1740369044044,-500.0,0.00016438,2]
[354256798,1740369044054,-1789.78,0.00016438,2]
[354256801,1740369044063,-500.0,0.00016438,2]
[354256804,1740369044073,-558.52331843,0.00016438,2]
[354256807,1740369044083,-1376.08,0.00016438,2]
[354256810,1740369044093,-500.0,0.00016438,2]
[354256813,1740369044103,-1867.62,0.00016438,2]
[354256817,1740369044113,-500.41510973,0.00016438,2]
[354256820,1740369044123,-478.21345112,0.00016438,2]
[354256822,1740369044132,-1246.34,0.00016438,2]
[354256824,1740369044142,-1112.25,0.00016438,2]
[354256826,1740369044151,-2532.71,0.00016438,2]
[354256828,1740369044160,-500.0,0.00016438,2]
[354256830,1740369044173,-500.0,0.00016438,2]
[354256832,1740369044182,-500.0,0.00016438,2]
[354256834,1740369044192,-1209.85,0.00016438,2]
[354256836,1740369044202,-539.68454837,0.00016438,2]
[354256838,1740369044211,-500.0,0.00016438,2]
[354256840,1740369044221,-500.0,0.00016438,2]
[354256842,1740369044230,-500.0,0.00016438,2]
[354256844,1740369044239,-3724.49,0.00016438,2]
[354256846,1740369044248,-502.86788833,0.00016438,2]
[354256848,1740369044258,-500.0,0.00016438,2]
[354256850,1740369044267,-500.0,0.00016438,2]
[354256852,1740369044276,-1080.4,0.00016438,2]
[354256854,1740369044285,-500.0,0.00016438,2]
[354256856,1740369044294,-1309.99,0.00016438,2]
[354256858,1740369044304,-500.0,0.00016438,2]
[354256860,1740369044313,-880.5,0.00016438,2]
[354256862,1740369044322,-500.0,0.00016438,2]
[354256864,1740369044331,-500.0,0.00016438,2]
[354256866,1740369044341,-500.0,0.00016438,2]
[354256868,1740369044351,-1356.54,0.00016438,2]
[354256870,1740369044360,-500.0,0.00016438,2]
[354256872,1740369044370,-500.0,0.00016438,2]
[354256874,1740369044380,-500.0,0.00016438,2]
[354256876,1740369044390,-500.0,0.00016438,2]
[354256879,1740369044399,-2012.91,0.00016438,2]
[354256881,1740369044408,-624.29,0.00016438,2]
[354256883,1740369044417,-500.0,0.00016438,2]
[354256885,1740369044429,-500.0,0.00016438,2]
[354256887,1740369044438,-500.0,0.00016438,2]
[354256889,1740369044448,-500.0,0.00016438,2]
[354256891,1740369044458,-1935.01,0.00016438,2]
[354256915,1740369044679,-3189.03,0.00016438,2]
[354256917,1740369044690,-2646.65,0.00016438,2]
[354256919,1740369044700,-503.05179034,0.00016438,2]
[354256921,1740369044711,-500.0,0.00016438,2]
[354256923,1740369044720,-500.0,0.00016438,2]
[354256925,1740369044731,-500.0,0.00016438,2]
[354256927,1740369044740,-500.0,0.00016438,2]
[354256930,1740369044751,-159.00044631,0.00016438,2]
[354256932,1740369044761,-500.0,0.00016438,2]
[354256933,1740369044770,-500.51564318,0.00016438,2]
[354256936,1740369044780,-502.17415242,0.00016438,2]
[354256938,1740369044789,-3163.09,0.00016438,2]
[354256940,1740369044799,-3513.68,0.00016438,2]
[354256942,1740369044808,-500.0,0.00016438,2]
[354256944,1740369044818,-1556.83,0.00016438,2]
[354256946,1740369044828,-500.0,0.00016438,2]
[354256948,1740369044838,-1333.58,0.00016438,2]
[354256949,1740369044848,-502.8646126,0.00016438,2]
[354256950,1740369044857,-500.0,0.00016438,2]
[354256951,1740369044866,-500.0,0.00016438,2]
[354256953,1740369044876,-500.0,0.00016438,2]
[354256955,1740369044885,-500.0,0.00016438,2]
[354256957,1740369044895,-500.0,0.00016438,2]
[354256959,1740369044904,-636.41,0.00016438,2]
[354256961,1740369044914,-500.0,0.00016438,2]
[354256963,1740369044926,-1969.93,0.00016438,2]
[354256965,1740369044935,-500.0,0.00016438,2]
[354256967,1740369044945,-500.0,0.00016438,2]
[354256969,1740369044954,-3374.91,0.00016438,2]
[354256971,1740369044963,-1361.9,0.00016438,2]
[354256973,1740369044973,-500.0,0.00016438,2]
[354256975,1740369044984,-500.0,0.00016438,2]
[354256977,1740369044994,-513.46835271,0.00016438,2]
[354256979,1740369045003,-500.0,0.00016438,2]
[354256981,1740369045013,-1134.69,0.00016438,2]
[354256983,1740369045022,-1337.93,0.00016438,2]
[354256985,1740369045032,-529.51415726,0.00016438,2]
[354256987,1740369045041,-925.06,0.00016438,2]
[354256989,1740369045050,-1757.62,0.00016438,2]
[354256991,1740369045060,-501.01551151,0.00016438,2]
[354256993,1740369045069,-500.0,0.00016438,2]
[354256995,1740369045079,-500.0,0.00016438,2]
[354256997,1740369045088,-500.0,0.00016438,2]
[354256999,1740369045097,-1949.63,0.00016438,2]
[354257001,1740369045107,-500.0,0.00016438,2]
[354257003,1740369045116,-1156.11,0.00016438,2]
[354257005,1740369045125,-1229.4,0.00016438,2]
[354257007,1740369045135,-500.0,0.00016438,2]
[354257009,1740369045144,-2870.18,0.00016438,2]
[354257011,1740369045154,-500.0,0.00016438,2]
[354257013,1740369045163,-500.0,0.00016438,2]
[354257015,1740369045173,-502.21519468,0.00016438,2]
[354257017,1740369045183,-500.0,0.00016438,2]
[354257019,1740369045192,-500.5831771,0.00016438,2]
[354257021,1740369045202,-500.0,0.00016438,2]
[354257023,1740369045211,-4095.01,0.00016438,2]
[354257025,1740369045221,-500.0,0.00016438,2]
[354257027,1740369045231,-502.52779056,0.00016438,2]
[354257028,1740369045240,-504.93960102,0.00016438,2]
[354257030,1740369045250,-2629.04,0.00016438,2]
[354257032,1740369045259,-500.0,0.00016438,2]
[354257034,1740369045268,-4515.29,0.00016438,2]
[354257036,1740369045277,-500.0,0.00016438,2]
[354257038,1740369045286,-500.0,0.00016438,2]
[354257040,1740369045296,-1849.58,0.00016438,2]
[354257042,1740369045305,-500.0,0.00016438,2]
[354257043,1740369045315,-2060.29,0.00016438,2]
[354257044,1740369045324,-500.0,0.00016438,2]
[354257045,1740369045334,-500.0,0.00016438,2]
[354257046,1740369045343,-771.38,0.00016438,2]
[354257047,1740369045353,-1620.17,0.00016438,2]
[354257048,1740369045362,-2610.91,0.00016438,2]
[354257049,1740369045371,-500.0,0.00016438,2]
[354257050,1740369045381,-503.14643472,0.00016438,2]
[354257051,1740369045391,-554.01369351,0.00016438,2]
[354257052,1740369045399,-500.0,0.00016438,2]
[354257053,1740369045408,-740.22,0.00016438,2]
[354257054,1740369045417,-612.44,0.00016438,2]
[354257055,1740369045427,-2876.11,0.00016438,2]
[354257056,1740369045436,-615.94386299,0.00016438,2]
[354257057,1740369045445,-500.0,0.00016438,2]
[354257058,1740369045455,-500.0,0.00016438,2]
[354257059,1740369045464,-1308.71,0.00016438,2]
[354257060,1740369045472,-730.14,0.00016438,2]
[354257061,1740369045481,-501.15265856,0.00016438,2]
[354257062,1740369045491,-771.13,0.00016438,2]
[354257063,1740369045500,-508.62676587,0.00016438,2]
[354257064,1740369045509,-744.22,0.00016438,2]
[354257065,1740369045518,-500.0,0.00016438,2]
[354257066,1740369045527,-500.0,0.00016438,2]
[354257067,1740369045536,-1403.19,0.00016438,2]
[354257068,1740369045546,-452.84472015,0.00016438,2]
[354257069,1740369045554,-846.41,0.00016438,2]
[354257070,1740369045563,-1000.0,0.00016438,2]
[354257071,1740369045572,-502.25278095,0.00016438,2]
[354257072,1740369045582,-500.0,0.00016438,2]
[354257073,1740369045591,-500.0,0.00016438,2]
[354257074,1740369045601,-2258.52,0.00016438,2]
[354257075,1740369045610,-2043.25,0.00016438,2]
[354257076,1740369045619,-500.0,0.00016438,2]
[354257077,1740369045628,-1407.59,0.00016438,2]
[354257078,1740369045637,-500.0,0.00016438,2]
[354257079,1740369045646,-502.10793183,0.00016438,2]
[354257080,1740369045656,-501.59565385,0.00016438,2]
[354257081,1740369045669,-501.74227198,0.00016438,2]
[354257082,1740369045680,-500.0,0.00016438,2]
[354257083,1740369045690,-500.0,0.00016438,2]
[354257085,1740369045699,-1948.01,0.00016438,2]
[354257087,1740369045709,-508.45889633,0.00016438,2]
[354257089,1740369045718,-500.0,0.00016438,2]
[354257090,1740369045727,-500.0,0.00016438,2]
[354257092,1740369045736,-3418.06,0.00016438,2]
[354257093,1740369045747,-2154.26,0.00016438,2]
[354257094,1740369045757,-500.0,0.00016438,2]
[354257095,1740369045766,-519.87993934,0.00016438,2]
[354257096,1740369045775,-500.0,0.00016438,2]
[354257097,1740369045784,-1567.23,0.00016438,2]
[354257099,1740369045793,-2040.16,0.00016438,2]
[354257101,1740369045802,-500.0,0.00016438,2]
[354257102,1740369045811,-1969.33,0.00016438,2]
[354257103,1740369045820,-500.0,0.00016438,2]
[354257104,1740369045829,-500.0,0.00016438,2]
[354257105,1740369045839,-577.95,0.00016438,2]
[354257106,1740369045848,-500.0,0.00016438,2]
[354257107,1740369045857,-500.0,0.00016438,2]
[354257108,1740369045866,-500.0,0.00016438,2]
[354257109,1740369045875,-208.01198468,0.00016438,2]
[354257110,1740369045884,-150.83,0.00016438,2]
[354257111,1740369045894,-150.0,0.0001646,2]
[354257112,1740369045903,-150.0,0.00016466,2]
[354257113,1740369045912,-150.0,0.00016475,2]
[354257114,1740369045922,-169.44236432,0.00016475,2]
[354257115,1740369045932,-500.0,0.000165,6]
[354257116,1740369045941,-314.1950592,0.00016502,2]
[354257117,1740369045950,-150.0,0.00016511,2]
[354257118,1740369045959,-809.22,0.00016519,2]
[354257119,1740369045969,-809.22,0.00016519,2]
[354257120,1740369045978,-500.0,0.00016519,2]
[354257121,1740369045987,-500.0,0.00016519,2]
[354257122,1740369045996,-500.0,0.00016519,2]
[354257123,1740369046005,-500.0,0.0001652,2]
[354257124,1740369046014,-681.711322,0.0001652,2]
[354257125,1740369046024,-511.91,0.0001652,2]
[354257126,1740369046033,-500.0,0.0001652,2]
[354257127,1740369046042,-630.150475,0.0001652,2]
[354257128,1740369046052,-548.51,0.0001652,2]
[354257129,1740369046061,-500.0,0.0001652,2]
[354257130,1740369046071,-500.0,0.0001652,2]
[354257131,1740369046080,-508.19,0.0001652,2]
[354257132,1740369046090,-500.0,0.0001652,2]
[354257133,1740369046099,-500.0,0.0001652,2]
[354257134,1740369046110,-500.0,0.0001652,2]
[354257135,1740369046120,-500.0,0.0001652,2]
[354257136,1740369046129,-500.0,0.0001652,2]
[354257137,1740369046139,-500.0,0.0001652,2]
[354257138,1740369046148,-575.61460805,0.0001652,2]
[354257139,1740369046157,-500.0,0.0001652,2]
[354257140,1740369046166,-593.86,0.0001652,2]
[354257141,1740369046175,-500.0,0.0001652,2]
[354257142,1740369046184,-500.0,0.0001652,2]
[354257143,1740369046194,-500.0,0.0001652,2]
[354257144,1740369046203,-314.30113702,0.0001652,2]
[354257145,1740369046455,-500.0,0.00016438,2]
[354257146,1740369046465,-309.24886298,0.0001652,2]
[354257147,1740369046474,-268.95113732,0.0001652,2]
[354257148,1740369046815,-500.0,0.00016438,2]
[354257149,1740369046824,-500.0,0.00016438,2]
[354257150,1740369046833,-118.19414773,0.00016438,2]
[354257151,1740369046845,-354.42261366,0.00016438,2]
[354257152,1740369046856,-29.27958104,0.00016438,2]
[354257153,1740369046865,-231.04886268,0.0001652,2]
[354257154,1740369046874,-500.0,0.0001652,2]
[354257155,1740369046883,-500.0,0.0001652,2]
[354257156,1740369046892,-349.67155628,0.0001652,2]
[354257157,1740369046913,-150.32844372,0.0001652,2]
[354257158,1740369046922,-114.31086749,0.0001652,2]
[354257159,1740369047259,-502.60967917,0.00016438,2]
[354257160,1740369047269,-118.76531811,0.00016438,2]
[354257161,1740369047280,-381.23468189,0.00016438,2]
[354257162,1740369047289,-500.0,0.00016438,2]
[354257163,1740369047299,-385.68913251,0.0001652,2]
[354257164,1740369047308,-576.34,0.0001652,2]
[354257165,1740369047318,-500.0,0.0001652,2]
[354257166,1740369047327,-500.0,0.0001652,2]
[354257167,1740369047336,-500.0,0.0001652,2]
[354257168,1740369047346,-529.56585132,0.0001652,2]
[354257169,1740369047355,-500.0,0.0001652,2]
[354257170,1740369047364,-500.0,0.0001652,2]
[354257171,1740369047374,-500.0,0.0001652,2]
[354257172,1740369047383,-1237.25,0.0001652,2]
[354257173,1740369047392,-500.0,0.0001652,2]
[354257174,1740369047402,-500.0,0.0001652,2]
[354257175,1740369047411,-1148.3,0.0001652,2]
[354257176,1740369047421,-500.0,0.0001652,2]
[354257177,1740369047433,-610.73,0.0001652,2]
[354257178,1740369047442,-1118.42,0.0001652,2]
[354257179,1740369047452,-500.0,0.0001652,2]
[354257180,1740369047461,-500.0,0.0001652,2]
[354257181,1740369047470,-972.65,0.0001652,2]
[354257182,1740369047479,-500.0,0.0001652,2]
[354257183,1740369047489,-1242.67,0.0001652,2]
[354257184,1740369047498,-500.0,0.0001652,2]
[354257185,1740369047507,-500.0,0.0001652,2]
[354257186,1740369047517,-500.0,0.0001652,2]
[354257187,1740369047526,-814.58,0.0001652,2]
[354257188,1740369047535,-500.0,0.0001652,2]
[354257189,1740369047544,-500.0,0.0001652,2]
[354257190,1740369047552,-564.14,0.0001652,2]
[354257191,1740369047561,-740.74,0.0001652,2]
[354257192,1740369047570,-783.89,0.0001652,2]
[354257193,1740369047579,-720.77,0.0001652,2]
[354257194,1740369047588,-612.56,0.0001652,2]
[354257195,1740369047597,-1238.8,0.0001652,2]
[354257196,1740369047605,-1120.9,0.0001652,2]
[354257197,1740369047614,-500.0,0.0001652,2]
[354257198,1740369047623,-713.76,0.0001652,2]
[354257199,1740369047631,-500.0,0.0001652,2]
[354257200,1740369047640,-500.0,0.0001652,2]
[354257201,1740369047649,-500.0,0.0001652,2]
[354257202,1740369047658,-500.0,0.0001652,2]
[354257203,1740369047667,-1113.49,0.0001652,2]
[354257204,1740369047681,-500.0,0.0001652,2]
[354257205,1740369047690,-539.76,0.0001652,2]
[354257206,1740369047699,-500.0,0.0001652,2]
[354257207,1740369047713,-500.0,0.0001652,2]
[354257208,1740369047722,-500.0,0.0001652,2]
[354257209,1740369047731,-662.22,0.0001652,2]
[354257210,1740369047740,-652.74,0.0001652,2]
[354257211,1740369047750,-500.0,0.0001652,2]
[354257212,1740369047759,-500.0,0.0001652,2]
[354257213,1740369047767,-500.0,0.0001652,2]
[354257214,1740369047777,-500.0,0.0001652,2]
[354257215,1740369047786,-500.0,0.0001652,2]
[354257216,1740369047795,-539.74,0.0001652,2]
[354257217,1740369047804,-500.0,0.0001652,2]
[354257218,1740369047814,-500.0,0.0001652,2]
[354257219,1740369047824,-676.6,0.0001652,2]
[354257220,1740369047833,-542.53,0.0001652,2]
[354257221,1740369047843,-545.1,0.0001652,2]
[354257222,1740369047852,-1083.0,0.0001652,2]
[354257223,1740369047862,-500.0,0.0001652,2]
[354257224,1740369047871,-504.69,0.0001652,2]
[354257225,1740369047880,-500.0,0.0001652,2]
[354257226,1740369047889,-995.73,0.0001652,2]
[354257227,1740369047899,-689.85,0.0001652,2]
[354257228,1740369047908,-939.9,0.0001652,2]
[354257229,1740369047917,-610.91,0.0001652,2]
[354257230,1740369047926,-568.4,0.0001652,2]
[354257231,1740369047935,-594.41,0.0001652,2]
[354257232,1740369047945,-573.88,0.0001652,2]
[354257233,1740369047954,-500.0,0.0001652,2]
[354257234,1740369047964,-500.0,0.0001652,2]
[354257235,1740369047975,-365.72033087,0.0001652,2]
[354257236,1740369047984,-907.44,0.0001652,2]
[354257237,1740369047993,-500.0,0.0001652,2]
[354257238,1740369048003,-687.18,0.0001652,2]
[354257239,1740369048012,-797.86,0.0001652,2]
[354257240,1740369048021,-708.1,0.0001652,2]
[354257241,1740369048032,-500.0,0.0001652,2]